bitfinex-derivatives/quotes_SOLF0:USTF0_20251101
["timestamp","ask_amount","ask_price","bid_price","bid_amount"]
[1762035693525,2.68,185.35,185.27,2.84]
[1762035693832,4.0477328,185.34,185.27,2.84]
[1762035694024,2.68,185.35,185.28,2.84]
[1762035694226,4.04776834,185.34,185.28,2.84]
[1762035694430,2.68,185.35,185.28,2.84]
[1762035694630,4.04757204,185.34,185.28,2.84]
[1762035694832,2.68,185.35,185.28,2.84]
[1762035695030,4.04757306,185.34,185.28,2.84]
[1762035695225,2.68,185.35,185.28,2.84]
[1762035695426,4.04782167,185.34,185.28,2.84]
[1762035695626,2.68,185.35,185.28,2.84]
[1762035695924,4.04802068,185.34,185.28,2.84]
[1762035696127,2.68,185.35,185.29,2.84]
[1762035696326,6.72803463,185.34,185.29,2.84]
[1762035696530,2.68,185.34,185.29,2.84]
[1762035697629,2.76,185.32,185.28,4.8593]
[1762035697831,2.76,185.32,185.26,2.8]
[1762035698030,2.76,185.3,185.26,2.8]
[1762035699426,2.76,185.3,185.23,4.8609]
[1762035699621,2.76,185.3,185.24,2.8]
[1762035699831,2.76,185.37,185.24,2.8]
[1762035700023,6.80948146,185.36,185.29,2.8]
[1762035700226,2.76,185.36,185.29,2.8]
[1762035700730,2.76,185.36,185.31,7.6586]
[1762035702127,2.76,185.34,185.31,7.6586]
[1762035704735,2.76,185.41,185.32,2.8]
[1762035704925,2.76,185.39,185.32,2.8]
[1762035705129,2.76,185.37,185.32,2.8]
[1762035705430,2.76,185.35,185.32,2.8]
[1762035706038,4.05148515,185.34,185.3,2.8]
[1762035706238,2.76,185.35,185.3,2.8]
[1762035707434,4.05306708,185.34,185.3,2.8]
[1762035707634,2.76,185.35,185.3,2.8]
[1762035707836,4.05306708,185.34,185.3,2.8]
[1762035708036,2.76,185.35,185.3,2.8]
[1762035708244,4.05306708,185.34,185.3,2.8]
[1762035708442,2.76,185.35,185.3,2.8]
[1762035708643,6.81419925,185.34,185.3,2.8]
[1762035708845,2.76,185.34,185.3,2.8]
[1762035712340,4.05992267,185.33,185.3,2.8]
[1762035712541,2.76,185.34,185.3,2.8]
[1762035712742,6.81992267,185.33,185.3,2.8]
[1762035712952,2.76,185.33,185.3,2.8]
[1762035713462,2.76,185.31,185.28,2.8]
[1762035713662,4.06181384,185.3,185.28,2.8]
[1762035713862,2.76,185.31,185.28,2.8]
[1762035714254,4.06391298,185.3,185.28,2.8]
[1762035714457,2.76,185.31,185.28,2.8]
[1762035714664,1.84548219,185.37,185.26,2.8]
[1762035714665,2.76,185.29,185.26,2.8]
[1762035714861,2.76,185.36,185.26,2.8]
[1762035715158,2.76,185.34,185.26,2.8]
[1762035715349,6.70268219,185.37,185.26,2.8]
[1762035715350,2.76,185.32,185.26,7.6599]
[1762035715554,6.82356059,185.31,185.27,2.8]
[1762035715754,4.06356059,185.3,185.27,2.8]
[1762035715960,4.06356059,185.29,185.27,2.8]
[1762035716159,4.06356059,185.28,185.27,2.8]
[1762035721957,2.76,185.31,185.27,2.8]
[1762035722457,2.76,185.31,185.29,4.859]
[1762035723564,2.76,185.31,185.27,7.82087783]
[1762035723565,2.76,185.4,185.33,4.8581]
[1762035723958,2.76,185.4,185.3,9.66636002]
[1762035724154,2.76,185.4,185.31,5.02087783]
[1762035725167,2.76,185.4,185.34,4.8578]
[1762035725568,2.76,185.4,185.35,4.8575]
[1762035726069,2.76,185.4,185.32,2.8]
[1762035727070,2.76,185.4,185.37,4.857]
[1762035728969,2.76,185.4,185.38,4.8567]
[1762035736084,2.76,185.4,185.36,6.70288219]
[1762035736371,2.69,185.38,185.36,6.70288219]
[1762035736573,4.98716473,185.37,185.36,6.70288219]
[1762035738178,2.29716473,185.37,185.36,6.70288219]
[1762035740175,2.29716473,185.37,185.34,2.84]
[1762035740176,4.98716473,185.37,185.34,2.84]
[1762035740382,2.29716473,185.36,185.34,4.68548219]
[1762035740581,2.69,185.37,185.34,4.68548219]
[1762035740772,2.29648767,185.36,185.34,4.68548219]
[1762035740973,2.69,185.37,185.34,4.68548219]
[1762035741276,2.29648769,185.36,185.34,4.68548219]
[1762035741480,2.69,185.37,185.34,4.68548219]
[1762035741782,2.29639008,185.36,185.34,4.68548219]
[1762035741975,2.69,185.37,185.34,4.68548219]
[1762035742275,2.29639084,185.36,185.34,4.68548219]
[1762035742469,2.69,185.37,185.34,4.68548219]
[1762035742673,2.29653448,185.36,185.34,4.68548219]
[1762035742881,2.29639056,185.35,185.34,4.68548219]
[1762035747387,2.29639056,185.35,185.34,2.84]
[1762035747586,2.29639056,185.35,185.34,4.68548219]
[1762035749482,2.29639056,185.35,185.34,8.83061373]
[1762035752490,2.29639056,185.35,185.34,6.98513154]
[1762035752988,2.29639056,185.35,185.34,8.83061373]
[1762035753989,2.69,185.37,185.35,4.8577]
[1762035754180,2.29774379,185.36,185.35,7.7777]
[1762035754380,2.29774379,185.36,185.35,11.92243231]
[1762035754795,2.29769157,185.36,185.35,11.92243231]
[1762035768393,2.29769157,185.36,185.35,16.94331014]
[1762035775396,5.21769157,185.36,185.35,14.02331014]
[1762035775592,5.21769157,185.36,185.35,16.72331014]
[1762035775895,2.29769157,185.36,185.35,16.72331014]
[1762035779403,2.29769157,185.36,185.35,7.5577]
[1762035782891,2.29769157,185.36,185.35,2.7]
[1762035784301,2.29769157,185.36,185.35,7.72087783]
[1762035784595,2.29769157,185.36,185.35,2.7]
[1762035785502,2.29769157,185.36,185.35,7.72087783]
[1762035786904,2.29769157,185.36,185.35,2.7]
[1762035788204,2.29769157,185.36,185.35,7.72087783]
[1762035797904,2.29769157,185.36,185.35,2.7]
[1762035799511,2.29769157,185.36,185.35,7.72087783]
[1762035800006,0.97330039,185.36,185.35,2.7]
[1762035800206,0.97330039,185.36,185.35,7.75611694]
[1762035806510,2.71,185.39,185.36,2.75]
[1762035807817,2.71,185.39,185.35,12.66361694]
[1762035809415,2.71,185.39,185.35,7.6075]
[1762035812217,2.78,185.37,185.35,7.6075]
[1762035812513,2.40149234,185.36,185.35,7.6075]
[1762035813009,5.18149234,185.36,185.34,7.80611694]
[1762035813210,2.40149234,185.35,185.34,7.80611694]
[1762035818421,2.40149234,185.35,185.34,2.75]
[1762035818922,2.40149234,185.35,185.34,7.80552377]
[1762035822121,2.78,185.38,185.35,2.92]
[1762035822324,5.43236171,185.37,185.35,2.92]
[1762035822622,2.50236171,185.36,185.35,2.92]
[1762035825224,2.93,185.44,185.38,2.92]
[1762035826723,2.93,185.44,185.39,2.92]
[1762035827925,2.93,185.44,185.4,2.92]
[1762035832914,2.93,185.44,185.36,7.7773]
[1762035833119,2.93,185.43,185.36,7.7773]
[1762035834121,2.93,185.43,185.37,2.92]
[1762035837328,2.93,185.41,185.37,2.92]
[1762035837629,5.31854954,185.4,185.37,2.92]
[1762035837828,2.38854954,185.39,185.37,2.92]
[1762035838028,2.38854954,185.38,185.37,2.92]
[1762035843425,2.38854954,185.38,185.37,4.76393697]
[1762035843629,2.38854954,185.38,185.37,10.89133171]
[1762035843630,1.61082369,185.38,185.37,10.89133171]
[1762035845436,1.61082369,185.38,185.37,9.81133171]
[1762035846341,1.61082369,185.38,185.37,4.76393697]
[1762035846928,1.61082369,185.38,185.37,9.81133171]
[1762035848340,1.61082369,185.38,185.37,4.76393697]
[1762035852248,1.61082369,185.38,185.37,9.81133171]
[1762035860061,1.61082369,185.38,185.37,4.76393697]
[1762035861464,1.61082369,185.38,185.37,9.81133171]
[1762035862071,1.61082369,185.38,185.37,4.76393697]
[1762035867173,1.61082369,185.38,185.37,9.81133171]
[1762035867877,2.78,185.42,185.38,7.6168]
[1762035868176,5.16108107,185.41,185.39,2.76]
[1762035868374,2.38108107,185.4,185.39,2.76]
[1762035871172,5.16108107,185.4,185.38,4.8568]
[1762035871373,2.38108107,185.39,185.38,7.6168]
[1762035873078,2.38159204,185.39,185.38,7.6168]
[1762035885585,2.38159204,185.39,185.38,12.66441352]
[1762035889789,2.38159204,185.39,185.38,14.50835049]
[1762035890990,2.38159204,185.39,185.38,9.46073697]
[1762035891486,2.38159204,185.39,185.38,7.6168]
[1762035896294,2.38159204,185.39,185.38,12.67156414]
[1762035900503,5.33159204,185.39,185.38,5.05476414]
[1762035900704,2.95,185.38,185.37,5.05476414]
[1762035900889,2.95,185.38,185.36,4.8574]
[1762035900890,2.95,185.37,185.36,5.05476414]
[1762035901209,2.95,185.36,185.32,7.83476414]
[1762035901501,2.95,185.34,185.31,5.05476414]
[1762035901792,5.33159204,185.33,185.31,5.05476414]
[1762035901999,2.38159204,185.32,185.31,7.83476414]
[1762035902401,5.33159204,185.32,185.3,7.83476414]
[1762035902594,2.38159204,185.31,185.3,7.83476414]
[1762035902995,2.38159204,185.31,185.3,12.69376414]
[1762035904102,2.38159204,185.31,185.3,7.639]
[1762035907203,2.95,185.35,185.3,7.639]
[1762035907404,2.94,185.33,185.3,7.639]
[1762035907606,2.37959106,185.32,185.31,2.74]
[1762035909600,2.94,185.31,185.28,7.5995]
[1762035909798,5.31790328,185.3,185.28,7.5995]
[1762035910110,2.94,185.3,185.28,7.5995]
[1762035912099,4.8564,185.41,185.28,7.5995]
[1762035912299,2.94,185.35,185.31,2.74]
[1762035912496,2.37650958,185.34,185.32,2.88074892]
[1762035912702,2.94,185.38,185.35,2.74]
[1762035912902,2.37723917,185.37,185.36,2.74]
[1762035913200,2.94,185.41,185.36,2.74]
[1762035913395,5.318225,185.4,185.36,2.74]
[1762035913595,2.378225,185.39,185.36,2.74]
[1762035913805,2.94,185.4,185.36,2.74]
[1762035914005,2.37822672,185.39,185.37,7.5971]
[1762035914202,2.37822672,185.38,185.37,7.5971]
[1762035915314,2.94,185.37,185.35,4.8577]
[1762035917913,2.94,185.37,185.35,7.5977]
[1762035919517,2.94,185.37,185.35,4.8577]
[1762035919821,2.94,185.37,185.35,7.5977]
[1762035921219,2.94,185.46,185.35,7.5977]
[1762035921420,2.94,185.44,185.35,7.5977]
[1762035921621,2.7,185.42,185.35,7.5977]
[1762035921821,2.7,185.4,185.36,2.75]
[1762035922021,5.07494814,185.39,185.36,2.75]
[1762035922221,2.37494814,185.38,185.36,2.75]
[1762035922421,2.37494814,185.37,185.36,2.75]
[1762035922723,2.7,185.39,185.36,2.75]
[1762035922921,2.37551404,185.38,185.36,2.75]
[1762035923129,2.7,185.39,185.36,2.75]
[1762035923423,2.37538938,185.38,185.36,2.75]
[1762035923625,2.7,185.42,185.37,2.75]
[1762035923827,2.37566961,185.41,185.37,2.75]
[1762035924024,2.37566961,185.4,185.37,2.75]
[1762035924223,2.37566961,185.39,185.37,2.75]
[1762035924425,2.7,185.42,185.37,2.75]
[1762035924619,2.37571523,185.41,185.37,2.75]
[1762035924823,2.37571523,185.4,185.37,2.75]
[1762035925020,2.37571523,185.39,185.38,2.75]
[1762035926826,2.7,185.42,185.39,4.8566]
[1762035927030,2.37607927,185.41,185.4,2.75]
[1762035929728,2.37607927,185.41,185.39,4.8566]
[1762035929932,2.7,185.39,185.37,2.75]
[1762035930132,2.7,185.46,185.37,2.75]
[1762035930333,2.7,185.44,185.37,2.75]
[1762035930530,2.7,185.42,185.36,4.8572]
[1762035930723,2.7,185.4,185.36,7.6072]
[1762035930930,5.07581208,185.39,185.36,7.6072]
[1762035931123,2.37581208,185.38,185.36,7.6072]
[1762035931326,2.7,185.39,185.36,7.6072]
[1762035931523,2.37560695,185.38,185.36,7.6072]
[1762035931824,2.7,185.39,185.36,7.6072]
[1762035932029,2.37560685,185.38,185.36,7.6072]
[1762035932226,2.7,185.39,185.36,7.6072]
[1762035932429,2.37569221,185.38,185.36,7.6072]
[1762035932631,2.7,185.39,185.36,7.6072]
[1762035932933,2.37569309,185.38,185.36,7.6072]
[1762035933135,2.7,185.39,185.36,7.6072]
[1762035933335,2.37564598,185.38,185.36,7.6072]
[1762035933536,2.7,185.39,185.36,7.6072]
[1762035933736,2.37578116,185.38,185.36,7.6072]
[1762035933938,2.7,185.39,185.36,7.6072]
[1762035934235,2.37623521,185.38,185.36,7.6072]
[1762035934436,2.7,185.39,185.36,7.6072]
[1762035934637,2.37632776,185.38,185.36,7.6072]
[1762035934833,2.7,185.39,185.36,7.6072]
[1762035935036,2.37632594,185.38,185.37,2.75]
[1762035935338,2.7,185.46,185.38,2.75]
[1762035935540,2.7,185.44,185.38,2.75]
[1762035935739,2.7,185.42,185.38,2.75]
[1762035935940,2.37669841,185.41,185.38,2.75]
[1762035936239,2.37669841,185.4,185.38,2.75]
[1762035936434,2.37669841,185.39,185.38,2.75]
[1762035937438,2.7,185.42,185.39,7.5666]
[1762035937639,2.37706012,185.41,185.39,7.5666]
[1762035937842,2.37706012,185.4,185.39,7.5666]
[1762035947247,5.27706012,185.4,185.36,4.8572]
[1762035947454,2.9,185.47,185.37,2.71]
[1762035947749,2.9,185.45,185.37,2.71]
[1762035947949,2.37714241,185.46,185.37,2.71]
[1762035947950,2.9,185.43,185.37,2.71]
[1762035948151,2.9,185.41,185.37,2.71]
[1762035948349,2.37714241,185.4,185.37,2.71]
[1762035948646,2.9,185.41,185.37,2.71]
[1762035948851,2.37734473,185.4,185.37,2.71]
[1762035949053,2.9,185.41,185.38,7.5668]
[1762035949253,2.37734473,185.4,185.38,7.5668]
[1762035949455,2.9,185.41,185.39,2.71]
[1762035949654,2.37758324,185.4,185.39,2.71]
[1762035950949,2.37793277,185.4,185.39,2.71]
[1762035961156,5.27793277,185.4,185.38,12.61561182]
[1762035961350,2.37793277,185.39,185.38,12.61561182]
[1762035962261,2.37793277,185.39,185.38,2.71]
[1762035963257,2.37793277,185.39,185.37,12.61599732]
[1762035963566,2.9,185.37,185.36,5.04899732]
[1762035963768,5.27793277,185.37,185.35,12.61669732]
[1762035963968,2.37793277,185.36,185.35,7.5677]
[1762035966567,3.277e-05,185.36,185.35,7.5677]
[1762035966867,1.84422833,185.47,185.4,2.7]
[1762035967063,2.83,185.49,185.41,2.7]
[1762035967267,2.83,185.49,185.42,2.7]
[1762035967469,2.83,185.49,185.43,2.7]
[1762035967774,2.83,185.49,185.44,2.7]
[1762035969167,2.83,185.49,185.45,2.7]
[1762035976376,2.83,185.49,185.42,5.04898557]
[1762035977476,2.83,185.49,185.42,7.74898557]
[1762035978371,2.83,185.49,185.43,2.7]
[1762035978569,2.83,185.47,185.43,2.7]
[1762035978769,2.34598197,185.46,185.43,2.7]
[1762035978969,2.83,185.47,185.43,2.7]
[1762035979273,5.17598197,185.46,185.43,2.7]
[1762035979473,2.83,185.46,185.43,2.7]
[1762035980876,2.34534079,185.45,185.43,2.7]
[1762035981077,2.83,185.46,185.43,2.7]
[1762035981277,2.34534079,185.45,185.43,2.7]
[1762035981577,2.83,185.46,185.43,2.7]
[1762035981777,2.34526711,185.45,185.43,2.7]
[1762035981976,2.83,185.46,185.43,2.7]
[1762035982178,2.34526634,185.45,185.43,2.7]
[1762035982377,2.83,185.46,185.43,2.7]
[1762035982578,2.34519713,185.45,185.43,2.7]
[1762035982778,2.83,185.46,185.43,2.7]
[1762035982980,2.34525491,185.45,185.43,2.7]
[1762035983181,2.83,185.46,185.43,2.7]
[1762035983379,2.34526044,185.45,185.43,2.7]
[1762035983582,2.83,185.46,185.43,4.54422833]
[1762035983884,2.34517865,185.45,185.43,4.54422833]
[1762035984084,2.83,185.46,185.43,4.54422833]
[1762035984286,2.34517865,185.45,185.43,4.54422833]
[1762035984486,2.83,185.46,185.43,4.54422833]
[1762035984687,2.34511807,185.45,185.43,4.54422833]
[1762035984988,2.83,185.46,185.43,4.54422833]
[1762035985287,2.34543922,185.45,185.43,4.54422833]
[1762035985479,2.83,185.46,185.43,4.54422833]
[1762035985679,2.34539399,185.45,185.43,4.54422833]
[1762035985878,2.83,185.46,185.43,4.54422833]
[1762035986079,2.34539399,185.45,185.43,4.54422833]
[1762035986278,2.83,185.46,185.43,4.54422833]
[1762035986482,2.34536396,185.45,185.43,4.54422833]
[1762035986690,2.83,185.46,185.43,4.54422833]
[1762035986889,2.34536396,185.45,185.43,4.54422833]
[1762035987089,2.83,185.46,185.43,4.54422833]
[1762035987289,2.34540738,185.45,185.43,4.54422833]
[1762035987490,2.83,185.46,185.43,4.54422833]
[1762035987690,2.34534901,185.45,185.43,4.54422833]
[1762035987894,2.83,185.46,185.43,4.54422833]
[1762035988090,2.34534901,185.45,185.43,4.54422833]
[1762035988298,2.83,185.46,185.43,4.54422833]
[1762035988486,2.34534908,185.45,185.43,4.54422833]
[1762035988686,2.83,185.46,185.43,4.54422833]
[1762035988887,2.34534908,185.45,185.43,4.54422833]
[1762035989088,2.83,185.46,185.43,2.7]
[1762035989288,2.34534908,185.45,185.43,4.54422833]
[1762035989595,2.83,185.46,185.43,4.54422833]
[1762035989795,2.34536418,185.45,185.43,4.54422833]
[1762035990094,2.83,185.46,185.43,4.54422833]
[1762035990295,2.34536418,185.45,185.43,4.54422833]
[1762035990493,2.83,185.46,185.43,4.54422833]
[1762035990694,2.34550273,185.45,185.43,4.54422833]
[1762035990898,2.83,185.46,185.43,4.54422833]
[1762035991086,2.34550088,185.45,185.43,4.54422833]
[1762035991283,2.83,185.46,185.43,4.54422833]
[1762035991487,2.73,185.49,185.45,1.84422833]
[1762035991697,5.07565646,185.48,185.45,4.71422833]
[1762035991896,2.34565646,185.47,185.45,4.71422833]
[1762035992087,2.34565646,185.46,185.45,4.71422833]
[1762035993597,2.73,185.52,185.45,4.71422833]
[1762035993598,2.73,185.52,185.47,2.87]
[1762035993791,2.73,185.52,185.49,4.71422833]
[1762035995489,2.73,185.52,185.47,4.71422833]
[1762035995697,2.73,185.52,185.48,2.87]
[1762035997000,2.73,185.52,185.46,4.8547]
[1762035998904,2.87,185.51,185.46,4.8547]
[1762035999199,2.87,185.51,185.46,7.8147]
[1762036001799,2.87,185.51,185.47,2.96]
[1762036002097,2.87,185.51,185.49,9.34319449]
[1762036005592,5.19067468,185.5,185.49,9.34319449]
[1762036010907,5.19067468,185.5,185.49,8.55751881]
[1762036011213,2.87,185.49,185.45,2.96]
[1762036011508,5.19067468,185.48,185.45,2.96]
[1762036011709,2.32067468,185.47,185.45,2.96]
[1762036012012,2.32067468,185.46,185.45,2.96]
[1762036026523,5.19067468,185.46,185.45,2.96]
[1762036027026,2.32067468,185.46,185.45,2.96]
[1762036045140,2.96,185.45,185.44,4.8552]
[1762036045341,2.32067468,185.45,185.44,7.8052]
[1762036051945,5.28067468,185.45,185.44,4.8552]
[1762036052133,9.45442732,185.45,185.44,4.8552]
[1762036052541,9.45442732,185.45,185.44,7.8052]
[1762036053343,6.49442732,185.45,185.44,7.8052]
[1762036054542,2.732e-05,185.45,185.44,7.8052]
[1762036055841,2.732e-05,185.45,185.44,12.85418557]
[1762036057845,2.732e-05,185.45,185.44,7.8052]
[1762036058754,2.732e-05,185.45,185.44,12.85418557]
[1762036066554,2.30375572,185.45,185.44,12.85418557]
[1762036074367,2.30375572,185.45,185.44,7.8052]
[1762036075763,2.30375572,185.45,185.44,12.85418557]
[1762036076368,2.30375572,185.45,185.44,7.8052]
[1762036076671,2.30375572,185.45,185.44,12.85418557]
[1762036076871,6.4229787,185.45,185.44,4.8552]
[1762036077075,6.4229787,185.45,185.44,9.90418557]
[1762036077283,6.42307489,185.45,185.44,9.90418557]
[1762036077571,6.42307489,185.45,185.44,12.81418557]
[1762036077770,7.489e-05,185.45,185.44,12.81418557]
[1762036077969,7.489e-05,185.45,185.44,7.7652]
[1762036078165,2.85,185.53,185.47,7.7644]
[1762036078873,2.85,185.53,185.48,2.91]
[1762036080872,6.69399578,185.58,185.49,2.91]
[1762036081079,2.85,185.55,185.49,2.91]
[1762036082080,2.85,185.55,185.51,2.91]
[1762036083182,2.85,185.58,185.53,2.91]
[1762036083981,2.85,185.58,185.54,2.91]
[1762036089987,9.10410598,185.57,185.54,2.91]
[1762036090188,4.0838928,185.56,185.54,2.91]
[1762036090378,4.0838928,185.55,185.54,2.91]
[1762036090581,2.75,185.57,185.54,2.91]
[1762036090582,2.75,185.63,185.54,2.91]
[1762036090791,2.27052652,185.62,185.56,2.87]
[1762036091085,2.75,185.63,185.57,4.852]
[1762036091286,5.02125675,185.62,185.58,2.87]
[1762036091480,2.75,185.62,185.58,2.87]
[1762036094691,9.97584707,185.77,185.6,2.87]
[1762036094692,2.75,185.65,185.6,2.87]
[1762036095280,2.75,185.65,185.61,2.87]
[1762036098385,1.84295418,185.7,185.61,2.87]
[1762036098594,2.75,185.68,185.62,2.87]
[1762036098791,2.27587402,185.67,185.62,2.87]
[1762036099093,1.84295418,185.73,185.62,2.87]
[1762036099094,2.75,185.7,185.62,2.87]
[1762036099395,2.75,185.69,185.64,2.87]
[1762036103691,2.79,185.74,185.66,2.89]
[1762036104996,2.79,185.74,185.7,2.89]
[1762036105299,2.79,185.76,185.7,2.89]
[1762036105501,2.79,185.76,185.69,4.8488]
[1762036106390,2.79,185.76,185.69,7.7388]
[1762036109395,2.79,185.76,185.7,2.89]
[1762036111903,2.79,185.73,185.67,2.89]
[1762036112198,2.79,185.7,185.67,2.89]
[1762036114802,4.63295418,185.71,185.67,2.89]
[1762036115205,2.79,185.7,185.67,2.89]
[1762036115392,1.84295418,185.71,185.67,2.89]
[1762036115806,4.63295418,185.71,185.67,2.89]
[1762036116597,2.79,185.71,185.67,2.89]
[1762036119107,2.79,185.71,185.68,2.79]
[1762036119306,2.71,185.72,185.68,2.79]
[1762036121110,2.71,185.72,185.69,4.8488]
[1762036121407,6.87255327,185.71,185.69,4.8488]
[1762036121597,2.71,185.71,185.69,4.8488]
[1762036122297,2.71,185.71,185.69,7.6388]
[1762036124100,2.71,185.72,185.7,2.79]
[1762036124301,4.16879801,185.71,185.7,2.79]
[1762036127010,4.16879801,185.71,185.69,4.8488]
[1762036127216,4.16879801,185.7,185.69,7.6388]
[1762036128610,6.87879801,185.7,185.69,4.8488]
[1762036130021,6.87879801,185.7,185.67,2.79]
[1762036130226,4.16879801,185.69,185.67,2.79]
[1762036130529,4.16879801,185.68,185.67,2.79]
[1762036131125,2.71,185.7,185.67,2.79]
[1762036131427,4.18220202,185.69,185.67,2.79]
[1762036131626,4.18220202,185.68,185.67,2.79]
[1762036141227,6.47611007,185.68,185.67,2.79]
[1762036141934,4.18220202,185.68,185.67,2.79]
[1762036142430,6.4775901,185.68,185.67,2.79]
[1762036143237,6.4775901,185.68,185.67,7.8389501]
[1762036145628,6.4775901,185.68,185.67,2.79]
[1762036145833,6.4775901,185.68,185.67,7.8389501]
[1762036148437,6.4775901,185.68,185.67,2.79]
[1762036151547,2.92,185.67,185.66,4.8494]
[1762036151842,6.4775901,185.67,185.66,7.6094]
[1762036152638,6.4775901,185.67,185.66,14.34138076]
[1762036153246,6.4775901,185.67,185.66,7.6094]
[1762036153649,4.18220202,185.67,185.66,14.34138076]
[1762036154347,6.48200057,185.67,185.66,14.34138076]
[1762036155747,6.48200057,185.67,185.66,7.6094]
[1762036156245,6.48200057,185.67,185.66,14.34138076]
[1762036156949,9.40200057,185.67,185.66,11.58138076]
[1762036157242,9.40200057,185.67,185.66,4.8494]
[1762036159444,9.40200057,185.67,185.65,6.73198076]
[1762036159643,2.92,185.65,185.64,4.8501]
[1762036159845,9.40200057,185.65,185.64,4.8501]
[1762036161150,9.40200057,185.65,185.63,6.73198076]
[1762036161450,6.48200057,185.64,185.63,9.49198076]
[1762036161650,4.18220202,185.64,185.63,9.49198076]
[1762036163152,4.18220202,185.64,185.63,2.76]
[1762036163547,4.18220202,185.64,185.63,9.49198076]
[1762036164554,4.18220202,185.64,185.63,2.76]
[1762036167755,4.18220202,185.64,185.63,9.49198076]
[1762036168158,4.18220202,185.64,185.63,2.76]
[1762036169760,4.18220202,185.64,185.63,13.60044514]
[1762036170151,4.18220202,185.64,185.63,6.86846438]
[1762036173351,6.48058998,185.64,185.63,6.86846438]
[1762036173557,4.18220202,185.64,185.63,6.86846438]
[1762036175067,4.18220202,185.64,185.63,13.60044514]
[1762036175263,4.18220202,185.64,185.63,6.86846438]
[1762036175466,4.18220202,185.64,185.63,13.60044514]
[1762036176568,4.18220202,185.64,185.63,6.86846438]
[1762036177367,4.18220202,185.64,185.63,13.60044514]
[1762036181068,4.18220202,185.64,185.63,6.86846438]
[1762036182472,9.2203378,185.64,185.63,9.14812325]
[1762036182764,9.2203378,185.64,185.63,4.10846438]
[1762036183760,0.7203378,185.64,185.63,2.6834339]
[1762036184071,0.7203378,185.64,185.62,5.03965887]
[1762036184272,2.87258219,185.68,185.62,5.03965887]
[1762036184569,2.87258219,185.68,185.6,5.03965887]
[1762036185170,2.87258219,185.64,185.59,5.03965887]
[1762036185670,2.87258219,185.68,185.59,5.03965887]
[1762036185872,2.74,185.67,185.59,9.89085887]
[1762036186268,2.74,185.67,185.59,4.8512]
[1762036186669,2.74,185.67,185.59,9.89085887]
[1762036187262,2.74,185.67,185.59,4.8512]
[1762036187871,2.74,185.67,185.6,4.8509]
[1762036193778,2.74,185.67,185.61,2.81]
[1762036199683,2.74,185.67,185.62,7.01294742]
[1762036199875,2.74,185.67,185.63,4.20294742]
[1762036200075,2.74,185.67,185.64,4.20294742]
[1762036200277,2.74,185.67,185.65,4.20294742]
[1762036200479,2.74,185.67,185.62,2.81]
[1762036200685,2.74,185.67,185.63,7.01331409]
[1762036200876,2.74,185.67,185.64,4.20331409]
[1762036201071,2.74,185.67,185.65,4.20331409]
[1762036201277,2.74,185.67,185.63,2.81]
[1762036201278,2.74,185.67,185.66,4.20331409]
[1762036201681,2.74,185.67,185.61,12.70035887]
[1762036201982,2.74,185.67,185.62,7.01386094]
[1762036202186,2.74,185.65,185.63,4.20386094]
[1762036202484,2.74,185.65,185.64,4.20386094]
[1762036209782,4.8486,185.7,185.64,4.20386094]
[1762036209977,2.74,185.71,185.66,2.95]
[1762036210182,2.74,185.71,185.67,7.15386094]
[1762036210492,2.74,185.73,185.69,2.95]
[1762036210790,2.74,185.73,185.66,5.03965887]